bitfinex/quotes_BTCUSD_20241101
["timestamp","ask_amount","ask_price","bid_price","bid_amount"]
[1730437296273,0.97327547,69601.0,69600.0,1.83493469]
[1730437296480,0.95927547,69601.0,69600.0,1.83393469]
[1730437296724,0.97327547,69601.0,69600.0,1.83393469]
[1730437296923,0.98727547,69601.0,69600.0,1.83493469]
[1730437297165,0.95927547,69601.0,69600.0,1.83393469]
[1730437297581,0.98727547,69601.0,69600.0,1.83493469]
[1730437297807,1.03020727,69601.0,69600.0,1.83493469]
[1730437299123,1.01620727,69601.0,69600.0,1.83393469]
[1730437299327,1.00220727,69601.0,69600.0,1.83393469]
[1730437299535,1.03020727,69601.0,69600.0,1.83493469]
[1730437299750,1.01620727,69601.0,69600.0,1.83393469]
[1730437300198,1.01620727,69601.0,69600.0,1.83493469]
[1730437300640,1.00220727,69601.0,69600.0,1.83393469]
[1730437300843,1.01620727,69601.0,69600.0,1.83393469]
[1730437301274,1.00220727,69601.0,69600.0,1.83393469]
[1730437301478,1.01620727,69601.0,69600.0,1.83493469]
[1730437302547,1.00220727,69601.0,69600.0,1.83393469]
[1730437302745,1.01620727,69601.0,69600.0,1.83393469]
[1730437302948,1.03020727,69601.0,69600.0,1.83493469]
[1730437303272,1.01620727,69601.0,69600.0,1.83393469]
[1730437303423,1.03020727,69601.0,69600.0,1.83493469]
[1730437304114,1.01620727,69601.0,69600.0,1.83493469]
[1730437304323,1.01620727,69601.0,69600.0,1.83393469]
[1730437304874,1.03020727,69601.0,69600.0,1.83493469]
[1730437305798,1.01620727,69601.0,69600.0,1.83493469]
[1730437306027,1.03020727,69601.0,69600.0,1.83493469]
[1730437306254,1.01620727,69601.0,69600.0,1.83493469]
[1730437306463,1.01620727,69601.0,69600.0,1.83393469]
[1730437306692,1.00220727,69601.0,69600.0,1.83393469]
[1730437306906,1.01620727,69601.0,69600.0,1.83493469]
[1730437307125,1.03020727,69601.0,69600.0,1.83493469]
[1730437312773,1.03010518,69601.0,69600.0,1.83493469]
[1730437313207,0.95090518,69601.0,69600.0,1.83493469]
[1730437315475,0.85170518,69601.0,69600.0,1.83493469]
[1730437319089,0.85180727,69601.0,69600.0,1.83493469]
[1730437319296,0.85170518,69601.0,69600.0,1.83493469]
[1730437319503,0.99682432,69601.0,69600.0,1.83493469]
[1730437320075,0.85180727,69601.0,69600.0,1.83493469]
[1730437320503,0.99692641,69601.0,69600.0,1.83493469]
[1730437320711,0.85180727,69601.0,69600.0,1.83493469]
[1730437321560,0.99720978,69601.0,69600.0,1.83493469]
[1730437322153,1.54760978,69601.0,69600.0,1.83493469]
[1730437323463,1.40220727,69601.0,69600.0,1.83493469]
[1730437328237,1.40210518,69601.0,69600.0,1.83493469]
[1730437330092,1.40220727,69601.0,69600.0,1.83493469]
[1730437331653,1.40220727,69601.0,69600.0,1.80619869]
[1730437331867,1.40220727,69601.0,69600.0,1.77746269]
[1730437333987,1.40220727,69601.0,69600.0,1.62018698]
[1730437335408,3.82920727,69601.0,69600.0,1.47650698]
[1730437335611,3.92506728,69601.0,69600.0,1.44777098]
[1730437335811,3.82920727,69601.0,69600.0,1.39029898]
[1730437336393,3.77520727,69601.0,69600.0,1.33282698]
[1730437336802,3.77520727,69601.0,69600.0,1.21788298]
[1730437337178,1.63520727,69601.0,69600.0,1.18914698]
[1730437338529,1.62120727,69601.0,69600.0,1.15941098]
[1730437338749,1.70306728,69601.0,69600.0,1.04446698]
[1730437338964,1.62120727,69601.0,69600.0,0.98699498]
[1730437339176,1.73106728,69601.0,69600.0,0.98699498]
[1730437339393,1.62120727,69601.0,69600.0,0.98699498]
[1730437339619,1.64370404,69601.0,69600.0,0.98699498]
[1730437339832,1.73956405,69601.0,69600.0,0.98699498]
[1730437340040,1.64370404,69601.0,69600.0,0.98699498]
[1730437340941,1.65770404,69601.0,69600.0,0.98699498]
[1730437341156,1.80910404,69601.0,69600.0,0.98699498]
[1730437341369,1.65770404,69601.0,69600.0,0.98699498]
[1730437345002,1.89914817,69601.0,69600.0,0.92952298]
[1730437345235,1.75356405,69601.0,69600.0,0.92952298]
[1730437345669,1.89927347,69601.0,69600.0,0.92952298]
[1730437345915,1.75356405,69601.0,69600.0,0.92952298]
[1730437347089,1.65770404,69601.0,69600.0,0.92952298]
[1730437347727,1.61870404,69601.0,69600.0,0.92952298]
[1730437349046,1.60460195,69601.0,69600.0,0.92952298]
[1730437349257,1.61870404,69601.0,69600.0,0.92952298]
[1730437349784,1.60470404,69601.0,69600.0,0.92952298]
[1730437350013,1.60470404,69601.0,69600.0,1.02842298]
[1730437350014,1.33021598,69601.0,69600.0,1.02842298]
[1730437350239,1.34421598,69601.0,69600.0,1.02842298]
[1730437350454,1.31621598,69601.0,69600.0,1.02842298]
[1730437350895,1.33021598,69601.0,69600.0,1.02842298]
[1730437351106,1.34421598,69601.0,69600.0,1.02842298]
[1730437351323,1.31621598,69601.0,69600.0,1.02842298]
[1730437351762,1.34421598,69601.0,69600.0,1.02842298]
[1730437352190,1.33021598,69601.0,69600.0,1.02842298]
[1730437352507,1.34421598,69601.0,69600.0,1.02842298]
[1730437352915,1.33021598,69601.0,69600.0,1.02842298]
[1730437353112,1.34421598,69601.0,69600.0,1.02842298]
[1730437353559,1.41803736,69601.0,69600.0,1.02842298]
[1730437354296,1.43203736,69601.0,69600.0,1.02842298]
[1730437354727,1.41803736,69601.0,69600.0,1.02842298]
[1730437354937,1.41803736,69601.0,69600.0,0.94746813]
[1730437354938,1.43203736,69601.0,69600.0,0.94746813]
[1730437360345,1.48987351,69601.0,69600.0,1.02296813]
[1730437360562,1.43203736,69601.0,69600.0,1.02296813]
[1730437361296,1.40403736,69601.0,69600.0,1.02296813]
[1730437361976,1.40603736,69601.0,69600.0,1.02296813]
[1730437363584,0.61619796,69601.0,69600.0,1.02296813]
[1730437363758,0.32538481,69601.0,69600.0,1.02296813]
[1730437363968,0.32288505,69601.0,69600.0,1.02296813]
[1730437364194,0.32088505,69601.0,69600.0,1.02296813]
[1730437364395,0.32288505,69601.0,69600.0,1.02296813]
[1730437365303,0.42288505,69601.0,69600.0,1.02296813]
[1730437365685,0.42088505,69601.0,69600.0,1.02296813]
[1730437367188,0.18220905,69601.0,69600.0,1.02396813]
[1730437368106,0.13927725,69601.0,69600.0,1.02396813]
[1730437368315,0.23927725,69601.0,69600.0,1.02296813]
[1730437368789,0.23927725,69601.0,69600.0,1.02396813]
[1730437368996,0.23927725,69601.0,69600.0,1.02296813]
[1730437370548,0.23927725,69601.0,69600.0,1.02396813]
[1730437372320,0.44998237,69601.0,69600.0,1.02396813]
[1730437382148,0.38295325,69601.0,69600.0,1.02396813]
[1730437384265,0.38295325,69601.0,69600.0,1.02296813]
[1730437384726,0.38295325,69601.0,69600.0,1.02396813]
[1730437384954,0.38295325,69601.0,69600.0,1.02296813]
[1730437385221,0.38295325,69601.0,69600.0,1.02396813]
[1730437386586,0.48830248,69601.0,69600.0,1.02396813]
[1730437387036,0.3827359,69601.0,69600.0,1.02396813]
[1730437387504,0.2390599,69601.0,69600.0,1.02396813]
[1730437387751,0.1390599,69601.0,69600.0,1.12482814]
[1730437388192,0.1390599,69601.0,69600.0,1.12672605]
[1730437388686,0.1390599,69601.0,69600.0,1.03086604]
[1730437390720,0.1390599,69601.0,69600.0,1.12672605]
[1730437393658,0.1390599,69601.0,69600.0,1.03086604]
[1730437394415,0.1390599,69601.0,69600.0,1.02986604]
[1730437394626,0.1390599,69601.0,69600.0,1.03086604]
[1730437394835,0.1390599,69601.0,69600.0,1.02986604]
[1730437395304,0.000822,69601.0,69600.0,1.12672605]
[1730437395529,0.000822,69601.0,69600.0,1.27040405]
[1730437395748,0.000822,69601.0,69600.0,1.26850614]
[1730437396208,0.000822,69601.0,69600.0,1.27350614]
[1730437396689,0.000822,69601.0,69600.0,1.27540405]
[1730437398439,0.000822,69601.0,69600.0,1.17954404]
[1730437403342,0.000822,69601.0,69600.0,1.17454404]
[1730437403543,0.000822,69601.0,69600.0,1.17954404]
[1730437406596,0.000822,69601.0,69600.0,1.27540405]
[1730437412225,0.000822,69601.0,69600.0,1.28040405]
[1730437416675,0.000822,69601.0,69600.0,1.27540405]
[1730437417007,0.000822,69601.0,69600.0,1.17764613]
[1730437418192,0.000822,69601.0,69600.0,1.27350614]
[1730437419025,0.000822,69601.0,69600.0,1.27540405]
[1730437419228,0.000822,69601.0,69600.0,1.27350614]
[1730437419422,0.000822,69601.0,69600.0,1.27540405]
[1730437427257,0.000822,69601.0,69600.0,1.17954404]
[1730437430728,0.000822,69601.0,69600.0,1.17454404]
[1730437430864,0.000822,69601.0,69600.0,1.17954404]
[1730437437518,0.000822,69601.0,69600.0,1.17854404]
[1730437437931,0.000822,69601.0,69600.0,1.17954404]
[1730437442663,0.000822,69601.0,69600.0,1.17854404]
[1730437443031,0.000822,69601.0,69600.0,1.17954404]
[1730437449837,0.000822,69601.0,69600.0,1.27540405]
[1730437450283,0.000822,69601.0,69600.0,1.37126406]
[1730437450517,0.000822,69601.0,69600.0,1.27540405]
[1730437450964,0.000822,69601.0,69600.0,1.27440405]
[1730437451177,0.000822,69601.0,69600.0,1.37026406]
[1730437451405,0.000822,69601.0,69600.0,1.27440405]
[1730437452074,0.000822,69601.0,69600.0,1.37026406]
[1730437452507,0.000822,69601.0,69600.0,1.27540405]
[1730437456894,0.000822,69601.0,69600.0,1.27440405]
[1730437457119,0.000822,69601.0,69600.0,1.27540405]
[1730437458531,0.000822,69601.0,69600.0,1.27440405]
[1730437458934,0.000822,69601.0,69600.0,1.27540405]
[1730437462928,0.000822,69601.0,69600.0,1.28040405]
[1730437468381,0.000822,69601.0,69600.0,1.37626406]
[1730437468604,0.000822,69601.0,69600.0,1.41921787]
[1730437470958,0.000822,69601.0,69600.0,1.42121787]
[1730437471176,0.000822,69601.0,69600.0,1.41921787]
[1730437471395,0.000822,69601.0,69600.0,1.37626406]
[1730437472523,0.000822,69601.0,69600.0,1.42121787]
[1730437472676,0.000822,69601.0,69600.0,1.37626406]
[1730437472879,0.000822,69601.0,69600.0,1.44069478]
[1730437473302,0.000822,69601.0,69600.0,1.67312262]
[1730437473584,0.000822,69601.0,69600.0,1.75903025]
[1730437473799,0.000822,69601.0,69600.0,1.67312262]
[1730437474015,0.000822,69601.0,69600.0,1.77512262]
[1730437474743,0.000822,69601.0,69600.0,1.77412262]
[1730437475211,0.000822,69601.0,69600.0,1.77512262]
[1730437475442,0.000822,69601.0,69600.0,1.77412262]
[1730437475931,0.000822,69601.0,69600.0,1.77512262]
[1730437476365,0.000822,69601.0,69600.0,1.88227223]
[1730437477267,0.000822,69601.0,69600.0,1.89110218]
[1730437477708,0.000822,69601.0,69600.0,1.89010218]
[1730437477926,0.000822,69601.0,69600.0,1.9867198]
[1730437478148,0.000822,69601.0,69600.0,1.87959126]
[1730437479658,0.000822,69601.0,69600.0,1.78373125]
[1730437480344,0.000822,69601.0,69600.0,1.89078584]
[1730437481571,0.000822,69601.0,69600.0,1.98664585]
[1730437481791,0.000822,69601.0,69600.0,1.89078584]
[1730437482013,0.000822,69601.0,69600.0,1.98664585]
[1730437482504,0.000822,69611.0,69610.0,0.16055491]
[1730437482751,0.21769576,69622.0,69621.0,0.16053191]
[1730437482980,0.21769576,69622.0,69621.0,0.25639192]
[1730437483209,0.000822,69625.0,69624.0,0.158628]
[1730437483428,0.000822,69625.0,69624.0,0.25638592]
[1730437484592,0.000822,69625.0,69624.0,0.25738592]
[1730437485905,0.000822,69625.0,69624.0,0.25238592]
[1730437486108,0.000822,69625.0,69624.0,0.15652591]
[1730437487444,0.000822,69625.0,69624.0,0.15152591]
[1730437487644,0.000822,69625.0,69624.0,0.15652591]
[1730437489749,0.000822,69625.0,69624.0,0.15152591]
[1730437489977,0.000822,69625.0,69624.0,0.15652591]
[1730437490808,0.000822,69625.0,69624.0,0.15152591]
[1730437491018,0.000822,69625.0,69624.0,0.15652591]
[1730437500307,0.000822,69625.0,69624.0,0.15152591]
[1730437500512,0.000822,69625.0,69624.0,0.15652591]
[1730437501368,0.000822,69625.0,69624.0,0.25322591]
[1730437510510,0.000822,69625.0,69624.0,0.32842591]
[1730437511594,0.000822,69625.0,69624.0,0.32342591]
[1730437511787,0.000822,69625.0,69624.0,0.32842591]
[1730437512248,0.000822,69625.0,69624.0,0.42428592]
[1730437513325,0.000822,69625.0,69624.0,0.42928592]
[1730437514287,0.000822,69625.0,69624.0,0.42828592]
[1730437514694,0.000822,69625.0,69624.0,0.42928592]
[1730437514885,0.000822,69625.0,69624.0,0.42828592]
[1730437515689,0.000822,69625.0,69624.0,0.42928592]
[1730437516109,0.000822,69625.0,69624.0,0.43028592]
[1730437516541,0.000822,69625.0,69624.0,0.42928592]
[1730437516953,0.000822,69625.0,69624.0,0.43028592]
[1730437520703,0.000822,69625.0,69624.0,0.52614593]
[1730437521566,0.000822,69625.0,69624.0,0.72881984]
[1730437522056,0.000822,69625.0,69624.0,0.82460012]
[1730437522275,0.000822,69625.0,69624.0,0.88878494]
[1730437522618,0.000822,69625.0,69624.0,0.92460012]
[1730437523027,0.000822,69625.0,69624.0,0.92260012]
[1730437523442,0.000822,69625.0,69624.0,0.92360012]
[1730437524075,0.000822,69625.0,69624.0,0.92460012]
[1730437524843,0.000822,69625.0,69624.0,0.92070221]
[1730437525760,0.000822,69625.0,69624.0,0.92460012]
[1730437526506,0.000822,69625.0,69624.0,1.03146153]
[1730437526975,0.000822,69625.0,69624.0,1.0401403]
[1730437527433,0.000822,69625.0,69624.0,0.93327889]
[1730437528588,0.000822,69625.0,69624.0,0.92938098]
[1730437529066,0.000822,69625.0,69624.0,0.93327889]
[1730437529293,0.000822,69625.0,69624.0,1.01872466]
[1730437530465,0.000822,69625.0,69624.0,0.93297784]
[1730437531366,0.000822,69625.0,69624.0,0.95597784]
[1730437531832,0.000822,69625.0,69624.0,0.96379091]
[1730437532278,0.000822,69625.0,69624.0,0.96279091]
[1730437532713,0.000822,69625.0,69624.0,0.96179091]
[1730437533128,0.000822,69625.0,69624.0,0.96279091]
[1730437533359,0.000822,69625.0,69624.0,1.02682331]
[1730437533587,0.000822,69625.0,69624.0,1.0229254]
[1730437533806,0.000822,69625.0,69624.0,1.02682331]
[1730437535329,0.000822,69625.0,69624.0,0.86912542]
[1730437537465,0.000822,69625.0,69624.0,0.86522751]
[1730437537666,0.000822,69625.0,69624.0,0.86912542]
[1730437538079,0.000822,69625.0,69624.0,0.56263547]
[1730437538461,0.000822,69625.0,69624.0,0.54872102]
[1730437541134,0.000822,69625.0,69624.0,0.72782102]
[1730437549286,0.000822,69625.0,69624.0,0.72782102]
[1730437550358,0.000822,69625.0,69624.0,0.79185565]
[1730437551433,0.000822,69625.0,69624.0,0.94949294]
[1730437552331,0.000822,69625.0,69624.0,0.88545831]
[1730437554237,0.000822,69625.0,69624.0,0.97083782]
[1730437556364,0.000822,69625.0,69624.0,0.88545831]
[1730437556794,0.000822,69625.0,69624.0,0.88555514]
[1730437557325,0.000822,69625.0,69624.0,0.99238036]
[1730437558502,0.000822,69625.0,69624.0,1.03699697]
[1730437559045,0.000822,69625.0,69624.0,1.03866943]
[1730437559251,0.000822,69625.0,69624.0,0.93183272]
[1730437562441,0.000822,69625.0,69624.0,0.91057067]
[1730437562624,0.000822,69625.0,69624.0,1.00643068]
[1730437563670,0.000822,69625.0,69624.0,1.00253277]
[1730437563890,0.000822,69625.0,69624.0,1.00643068]
[1730437566311,0.000822,69625.0,69624.0,1.13473711]
[1730437567425,0.000822,69625.0,69624.0,1.00643068]
[1730437571839,0.000822,69625.0,69624.0,0.65317529]
[1730437572049,0.000822,69625.0,69624.0,0.65343539]
[1730437573593,0.000822,69625.0,69624.0,0.6621264]
[1730437573804,0.000822,69625.0,69624.0,0.6611264]
[1730437574271,0.000822,69625.0,69624.0,0.77117675]
[1730437574494,0.000822,69625.0,69624.0,0.76917675]
[1730437574738,0.171922,69625.0,69624.0,0.42517048]
[1730437574958,0.171922,69625.0,69624.0,0.25684299]
[1730437575624,0.171922,69625.0,69624.0,0.25584299]
[1730437576301,0.000822,69629.0,69628.0,0.15051791]
[1730437576512,0.000822,69629.0,69628.0,0.24924984]
[1730437576737,0.000822,69629.0,69628.0,0.25691983]
[1730437578113,0.000822,69629.0,69628.0,0.25791983]
[1730437580202,0.000822,69629.0,69628.0,0.35377984]
[1730437580432,0.000822,69629.0,69628.0,0.35090792]
[1730437581624,0.000822,69629.0,69628.0,0.5321535]
[1730437581850,0.000822,69629.0,69628.0,0.48936317]
[1730437582084,0.000822,69629.0,69628.0,0.55354867]
[1730437582538,0.000822,69629.0,69628.0,0.48936317]
[1730437587777,0.000822,69629.0,69628.0,0.56736317]
[1730437588005,0.000822,69629.0,69628.0,0.56936317]
[1730437588233,0.000822,69629.0,69628.0,0.63349748]
[1730437588654,0.000822,69629.0,69628.0,0.65649748]
[1730437588859,0.000822,69629.0,69628.0,0.85016136]
[1730437589714,0.000822,69629.0,69628.0,0.84916136]
[1730437589942,0.000822,69629.0,69628.0,0.85016136]
[1730437590366,0.000822,69629.0,69628.0,0.84916136]
[1730437590843,0.000822,69629.0,69628.0,0.85016136]
[1730437591068,0.000822,69629.0,69628.0,0.85012638]
[1730437591539,0.000822,69629.0,69628.0,0.84622847]
[1730437591763,0.000822,69629.0,69628.0,0.74522847]
[1730437591987,0.000822,69629.0,69628.0,0.73672573]
[1730437592204,0.000822,69629.0,69628.0,0.83258574]
[1730437592674,0.000822,69629.0,69628.0,0.83068783]
[1730437593371,0.000822,69629.0,69628.0,0.83258574]
[1730437593778,0.000822,69629.0,69628.0,0.83068783]
[1730437595060,0.000822,69629.0,69628.0,0.83258574]
[1730437595702,0.000822,69629.0,69628.0,0.83255571]
[1730437596941,0.000822,69629.0,69628.0,0.7366957]
[1730437597373,0.000822,69629.0,69628.0,0.83255571]
[1730437597796,0.000822,69629.0,69628.0,0.53623264]
[1730437597999,0.000822,69629.0,69628.0,0.49350316]
[1730437600390,0.000822,69629.0,69628.0,0.25504791]
[1730437602826,0.170922,69629.0,69628.0,0.25504791]
[1730437603511,0.170922,69629.0,69628.0,0.25404791]
[1730437603994,0.170922,69629.0,69628.0,0.25504791]
[1730437605135,0.170922,69629.0,69628.0,0.25404791]
[1730437605383,0.095422,69629.0,69628.0,0.25404791]
[1730437606050,0.095422,69629.0,69628.0,0.25504791]
[1730437606529,0.095422,69629.0,69628.0,0.25404791]
[1730437606724,0.095422,69629.0,69628.0,0.25504791]
[1730437608328,0.095422,69629.0,69628.0,0.25404791]
[1730437608813,0.095422,69629.0,69628.0,0.25504791]
[1730437609269,0.095422,69629.0,69628.0,0.25404791]
[1730437609506,0.095422,69629.0,69628.0,0.25504791]
[1730437612616,0.000822,69629.0,69628.0,0.25504791]
[1730437612837,0.000822,69629.0,69628.0,0.1541879]
[1730437613055,0.169822,69629.0,69628.0,0.1541879]
[1730437614893,0.169822,69629.0,69628.0,0.1531879]
[1730437615109,0.169822,69629.0,69628.0,0.1541879]
[1730437615804,0.169822,69629.0,69628.0,0.1531879]
[1730437616039,0.169822,69629.0,69628.0,0.1541879]
[1730437618234,0.169822,69629.0,69628.0,0.1531879]
[1730437618447,0.169822,69629.0,69628.0,0.1541879]
[1730437624945,0.169822,69629.0,69628.0,0.0105679]
[1730437625155,0.31344,69629.0,69628.0,0.00866999]
[1730437625382,0.31344,69629.0,69628.0,0.001]
[1730437625814,0.143621,69628.0,69625.0,0.00569597]
[1730437626032,0.0903,69627.0,69625.0,0.00569597]
[1730437627569,0.0903,69627.0,69626.0,0.00189791]
[1730437628602,0.0903,69627.0,69626.0,0.00957125]
[1730437629358,0.0903,69627.0,69626.0,0.01057125]
[1730437637161,0.0903,69627.0,69626.0,0.00957125]
[1730437637368,0.0903,69627.0,69626.0,0.01057125]
[1730437637808,0.0903,69627.0,69626.0,0.00957125]
[1730437638232,0.0903,69627.0,69626.0,0.01057125]
[1730437639753,0.000822,69629.0,69626.0,0.01057125]
[1730437639989,0.000822,69629.0,69628.0,0.23948001]
[1730437640386,0.000822,69629.0,69628.0,0.14959585]
[1730437641219,0.000822,69629.0,69628.0,0.00597585]
[1730437641427,0.091122,69629.0,69626.0,0.14551991]
[1730437641623,0.0827,69628.0,69625.0,0.00569597]
[1730437641892,0.000822,69627.0,69625.0,0.00379806]
[1730437642573,0.23931526,69626.0,69625.0,0.00379806]
[1730437642780,0.38293926,69626.0,69625.0,0.00379806]
[1730437642995,0.68936111,69626.0,69625.0,0.00379806]
[1730437643231,0.78936111,69626.0,69625.0,0.001644]
[1730437643638,0.8755052,69626.0,69625.0,0.001644]
[1730437643875,0.78936111,69626.0,69625.0,0.001644]
[1730437644315,0.91834398,69626.0,69625.0,0.001644]
[1730437644576,0.66363926,69626.0,69625.0,0.002644]
[1730437645356,0.72814034,69626.0,69625.0,0.002644]
[1730437646155,0.66363926,69626.0,69625.0,0.002644]
[1730437646304,0.72813088,69626.0,69625.0,0.002644]
[1730437647468,0.66363926,69626.0,69625.0,0.002644]
[1730437649490,0.70661946,69626.0,69625.0,0.002644]
[1730437650259,0.66363926,69626.0,69625.0,0.002644]
[1730437650391,0.70661546,69626.0,69625.0,0.002644]
[1730437652723,0.71411356,69626.0,69625.0,0.002644]
[1730437653006,0.80961466,69626.0,69625.0,0.002644]
[1730437653246,0.87409745,69626.0,69625.0,0.002644]
[1730437653493,0.80961466,69626.0,69625.0,0.002644]
[1730437653858,0.80711656,69626.0,69625.0,0.002644]
[1730437655480,0.80793856,69626.0,69625.0,0.002644]
[1730437657121,0.80293856,69626.0,69625.0,0.002644]
[1730437657346,0.80793856,69626.0,69625.0,0.002644]
[1730437658372,0.80293856,69626.0,69625.0,0.002644]
[1730437658577,0.8169365,69626.0,69625.0,0.002644]
[1730437664085,0.6784592,69626.0,69625.0,0.002644]
[1730437665111,0.6784592,69626.0,69625.0,0.001644]
[1730437665516,0.6784592,69626.0,69625.0,0.002644]
[1730437666791,0.6784592,69626.0,69625.0,0.001644]
[1730437667216,0.6784592,69626.0,69625.0,0.002644]
[1730437667634,0.7429111,69626.0,69625.0,0.002644]
[1730437669418,0.83533338,69626.0,69625.0,0.002644]
[1730437670318,0.77088148,69626.0,69625.0,0.002644]
[1730437672417,0.6784592,69626.0,69625.0,0.002644]
[1730437674395,0.80984976,69626.0,69625.0,0.002644]
[1730437674717,0.80085182,69626.0,69625.0,0.002644]
[1730437675540,0.79835362,69626.0,69625.0,0.002644]
[1730437676032,0.79841231,69626.0,69625.0,0.002644]
[1730437676175,0.93688961,69626.0,69625.0,0.002644]
[1730437678280,0.85089505,69626.0,69625.0,0.002644]
[1730437678478,0.84589505,69626.0,69625.0,0.002644]
[1730437678789,0.71241775,69626.0,69625.0,0.002644]
[1730437680145,0.70741775,69626.0,69625.0,0.002644]
[1730437680403,0.71241775,69626.0,69625.0,0.002644]
[1730437680579,0.81994798,69626.0,69625.0,0.002644]
[1730437683462,0.71241775,69626.0,69625.0,0.002644]
[1730437683674,0.85089505,69626.0,69625.0,0.002644]
[1730437684665,0.84589505,69626.0,69625.0,0.002644]
[1730437684847,0.85089505,69626.0,69625.0,0.002644]
[1730437687395,0.97993132,69626.0,69625.0,0.002644]
[1730437688150,0.84145402,69626.0,69625.0,0.002644]
[1730437688347,0.70741775,69626.0,69625.0,0.002644]
[1730437688547,0.71241775,69626.0,69625.0,0.002644]
[1730437689556,0.70741775,69626.0,69625.0,0.002644]
[1730437690437,0.52671775,69626.0,69625.0,0.002644]
[1730437690638,0.43085774,69626.0,69625.0,0.078144]
[1730437690839,0.38790125,69626.0,69625.0,0.09086577]
[1730437691037,0.49571162,69626.0,69625.0,0.09086577]
[1730437691640,0.38790125,69626.0,69625.0,0.09086577]
[1730437691781,0.28790125,69626.0,69625.0,0.09086577]
[1730437691979,0.37412921,69626.0,69625.0,0.09086577]
[1730437692191,0.39571162,69626.0,69625.0,0.09086577]
[1730437692388,0.39571162,69626.0,69625.0,0.08986577]
[1730437692621,0.39571162,69626.0,69625.0,0.09086577]
[1730437693297,0.39571162,69626.0,69625.0,0.08986577]
[1730437693505,0.39571162,69626.0,69625.0,0.09086577]
[1730437693912,0.50248028,69626.0,69625.0,0.01536577]
[1730437694550,0.39466991,69626.0,69625.0,0.01536577]
[1730437694811,0.50248028,69626.0,69625.0,0.01536577]
[1730437695219,0.50242429,69626.0,69625.0,0.01536577]
[1730437695420,0.50242429,69626.0,69625.0,0.01436577]
[1730437695562,0.39466991,69626.0,69625.0,0.01436577]
[1730437697173,0.48085869,69626.0,69625.0,0.01436577]
[1730437698523,0.48084789,69626.0,69625.0,0.01436577]
[1730437699983,0.37407514,69626.0,69625.0,0.01436577]
[1730437702308,0.35252392,69626.0,69625.0,0.01436577]
[1730437702521,0.28790125,69626.0,69625.0,0.01436577]
[1730437702744,0.37407514,69626.0,69625.0,0.01436577]
[1730437704516,0.28790125,69626.0,69625.0,0.01436577]
[1730437707681,0.21690756,69626.0,69625.0,0.01436577]
[1730437709211,0.21690756,69626.0,69625.0,0.01854493]
[1730437710074,0.21690756,69626.0,69625.0,0.01431941]
[1730437713426,0.21690756,69626.0,69625.0,0.01621732]
[1730437713633,0.25998354,69626.0,69625.0,0.10681732]
[1730437713837,0.19252198,69626.0,69625.0,0.10681732]
[1730437714473,0.19252198,69626.0,69625.0,0.10491941]
[1730437716150,0.149446,69626.0,69625.0,0.10491941]
[1730437717319,0.149446,69626.0,69625.0,0.18051941]
[1730437717553,0.144446,69626.0,69625.0,0.18051941]
[1730437717758,0.149446,69626.0,69625.0,0.18051941]
[1730437718001,0.144446,69626.0,69625.0,0.18051941]
[1730437718332,0.149446,69626.0,69625.0,0.18051941]
[1730437718537,0.149446,69626.0,69625.0,0.18241732]
[1730437721482,0.149446,69626.0,69625.0,0.17818432]
[1730437721955,0.28790125,69626.0,69625.0,0.01008641]
[1730437722184,0.57530553,69626.0,69625.0,0.01008641]
[1730437722413,0.57530553,69626.0,69625.0,0.001644]
[1730437722414,0.43091357,69626.0,69625.0,0.001644]
[1730437722672,0.56939087,69626.0,69625.0,0.001644]
[1730437725691,0.56939087,69626.0,69624.0,0.001644]
[1730437725692,0.36142809,69625.0,69624.0,0.001644]
[1730437725940,0.36142809,69625.0,69614.0,0.21933976]
[1730437725941,0.53516911,69615.0,69614.0,0.21933976]
[1730437726161,0.85511398,69615.0,69614.0,0.21933976]
[1730437726630,0.85501189,69615.0,69614.0,0.001644]
[1730437726873,1.11318663,69615.0,69614.0,0.001644]
[1730437727123,1.14384261,69615.0,69614.0,0.001644]
[1730437727370,1.14384261,69615.0,69600.0,0.84856813]
[1730437727371,0.19682211,69601.0,69600.0,0.84856813]
[1730437727590,0.66494186,69601.0,69600.0,0.84856813]
[1730437727817,0.56908185,69601.0,69600.0,0.85876395]
[1730437728053,0.56908185,69601.0,69600.0,0.85585086]
[1730437728766,0.54752391,69601.0,69600.0,0.85585086]
[1730437729682,0.52599503,69601.0,69600.0,0.85585086]
[1730437730355,0.60393208,69601.0,69600.0,0.85585086]
[1730437730587,0.56092831,69601.0,69600.0,0.85585086]
[1730437732217,0.48070343,69601.0,69600.0,0.85585086]
[1730437733603,0.48319624,69601.0,69600.0,0.85585086]
[1730437734263,0.48319624,69601.0,69600.0,0.84856813]
[1730437734264,0.48329833,69601.0,69600.0,0.84856813]
[1730437734479,0.48329833,69601.0,69600.0,0.85591804]
[1730437734715,0.48070343,69601.0,69600.0,0.85591804]
[1730437735370,0.61918073,69601.0,69600.0,0.85591804]
[1730437736119,0.61418073,69601.0,69600.0,0.85591804]
[1730437738666,0.47570343,69601.0,69600.0,0.84856813]
[1730437738914,0.47570343,69601.0,69600.0,0.85591804]
[1730437742251,0.47580552,69601.0,69600.0,0.85591804]
[1730437742475,0.47570343,69601.0,69600.0,0.85591804]
[1730437749806,0.47799126,69601.0,69600.0,0.85591804]
[1730437750050,0.47215796,69601.0,69600.0,0.85591804]
[1730437750467,0.56801797,69601.0,69600.0,0.85591804]
[1730437750894,0.47215796,69601.0,69600.0,0.85591804]
[1730437754207,0.71149527,69601.0,69600.0,0.85591804]
[1730437754432,0.71159736,69601.0,69600.0,0.85591804]
[1730437754878,0.71149527,69601.0,69600.0,0.85591804]
[1730437755093,0.71398719,69601.0,69600.0,0.85591804]
[1730437756427,0.71365411,69601.0,69600.0,0.85591804]
[1730437756639,0.57517681,69601.0,69600.0,0.85591804]
[1730437757279,0.57599881,69601.0,69600.0,0.85591804]
[1730437757489,0.4801388,69601.0,69600.0,0.85591804]
[1730437757721,0.58099881,69601.0,69600.0,0.85591804]
[1730437758182,0.85886952,69601.0,69600.0,0.85591804]
[1730437758403,1.04027945,69601.0,69600.0,0.85591804]
[1730437758629,1.09814583,69601.0,69600.0,0.84856813]
[1730437758856,1.05694595,69601.0,69600.0,0.84856813]
[1730437759089,0.97511164,69601.0,69600.0,0.84856813]
[1730437759364,0.97511164,69601.0,69600.0,0.86480778]
[1730437759589,1.01797721,69601.0,69600.0,0.84856813]
[1730437759822,1.01797721,69601.0,69600.0,0.86480778]
[1730437761675,0.97511164,69601.0,69600.0,0.86480778]
[1730437762103,0.97511164,69601.0,69600.0,0.84856813]
[1730437762518,1.03941,69601.0,69600.0,0.86480778]
[1730437763585,0.97511164,69601.0,69600.0,0.86480778]